[Event "Live Chess"]
[Site "Chess.com"]
[Date "2023.05.20"]
[Round "-"]
[White "TheSmoulderingMaster"]
[Black "f4nomore"]
[Result "1-0"]
[WhiteElo "1792"]
[BlackElo "1357"]
[TimeControl "300"]
[EndTime "9:49:04 PDT"]
[Termination "TheSmoulderingMaster won by resignation"]

1. e4 {[%clk 0:04:58.8]} 1... g6 {[%clk 0:04:59.9]} 2. d4 {[%clk 0:04:57.5]}
2... Bg7 {[%clk 0:04:59.8]} 3. Nc3 {[%clk 0:04:56.3]} 3... d6 {[%clk 0:04:59.7]}
4. Nf3 {[%clk 0:04:55.5]} 4... Nf6 {[%clk 0:04:57.3]} 5. Bf4 {[%clk 0:04:54.4]}
5... O-O {[%clk 0:04:56]} 6. Qd2 {[%clk 0:04:53.5]} 6... Ng4 {[%clk 0:04:53.6]}
7. O-O-O {[%clk 0:04:50.3]} 7... e5 {[%clk 0:04:51.6]} 8. dxe5 {[%clk
0:04:48.9]} 8... Nxe5 {[%clk 0:04:49.6]} 9. Nxe5 {[%clk 0:04:48.1]} 9... Nc6
{[%clk 0:04:41.6]} 10. Nxc6 {[%clk 0:04:46.8]} 10... bxc6 {[%clk 0:04:39.9]} 11.
e5 {[%clk 0:04:46.4]} 11... Qh4 {[%clk 0:04:27.1]} 12. Bg3 {[%clk 0:04:43.3]}
12... Qh5 {[%clk 0:04:15.8]} 13. Be2 {[%clk 0:04:41.9]} 13... Bh6 {[%clk
0:04:07.6]} 14. Bxh5 {[%clk 0:04:39.5]} 14... Bxd2+ {[%clk 0:04:06]} 15. Rxd2
{[%clk 0:04:38.8]} 15... gxh5 {[%clk 0:04:04.8]} 16. exd6 {[%clk 0:04:38.4]}
16... cxd6 {[%clk 0:04:02.8]} 17. Rxd6 {[%clk 0:04:35.6]} 17... Bg4 {[%clk
0:03:56.1]} 18. f3 {[%clk 0:04:33.6]} 18... Be6 {[%clk 0:03:54.2]} 19. Ne4
{[%clk 0:04:31.3]} 19... Rfd8 {[%clk 0:03:49.9]} 20. Rhd1 {[%clk 0:04:28.9]}
20... Rxd6 {[%clk 0:03:48.2]} 21. Rxd6 {[%clk 0:04:27.3]} 21... Rc8 {[%clk
0:03:43.4]} 22. Nc5 {[%clk 0:04:25.1]} 22... Bf5 {[%clk 0:03:30.5]} 23. Nd7
{[%clk 0:04:15.5]} 23... Bg6 {[%clk 0:03:18.6]} 24. Ne5 {[%clk 0:04:12.8]} 24...
Kg7 {[%clk 0:03:16.8]} 25. Nxg6 {[%clk 0:04:11.3]} 25... hxg6 {[%clk 0:03:15.2]}
26. Rd7 {[%clk 0:04:08.5]} 26... a5 {[%clk 0:03:08.6]} 27. Ra7 {[%clk
0:04:07.4]} 27... Re8 {[%clk 0:03:02]} 28. Rxa5 {[%clk 0:04:05.4]} 28... Re2
{[%clk 0:02:59.6]} 29. Ra7 {[%clk 0:04:02]} 29... Rxg2 {[%clk 0:02:57.2]} 30. a4
{[%clk 0:04:01.2]} 30... Rg1+ {[%clk 0:02:55.7]} 31. Kd2 {[%clk 0:03:59.6]}
31... Rf1 {[%clk 0:02:49.8]} 32. f4 {[%clk 0:03:58.1]} 32... Rg1 {[%clk
0:02:45]} 33. a5 {[%clk 0:03:56.9]} 33... Rg2+ {[%clk 0:02:43.8]} 34. Kc3 {[%clk
0:03:55.4]} 34... h4 {[%clk 0:02:31.6]} 35. a6 {[%clk 0:03:45.9]} 35... hxg3
{[%clk 0:02:28.8]} 36. hxg3 {[%clk 0:03:44.9]} 36... Rxg3+ {[%clk 0:02:27.8]}
37. Kc4 {[%clk 0:03:44.4]} 37... Rg2 {[%clk 0:02:22.3]} 38. Kb3 {[%clk
0:03:41.5]} 38... Rg3+ {[%clk 0:02:21]} 39. c3 {[%clk 0:03:40.6]} 39... Rf3
{[%clk 0:02:18.8]} 40. Rc7 {[%clk 0:03:38.3]} 40... Rxf4 {[%clk 0:02:15.9]} 41.
a7 {[%clk 0:03:37.6]} 41... Rf5 {[%clk 0:02:13]} 42. a8=Q {[%clk 0:03:36.3]}
42... Rb5+ {[%clk 0:02:11.2]} 43. Kc4 {[%clk 0:03:35.1]} 43... Rxb2 {[%clk
0:02:07]} 44. Qxc6 {[%clk 0:03:33.7]} 44... Rc2 {[%clk 0:02:04]} 45. Qd6 {[%clk
0:03:32]} 1-0

[Event "Live Chess"]
[Site "Chess.com"]
[Date "2023.05.20"]
[Round "-"]
[White "jagbama"]
[Black "Greenbecker"]
[Result "1-0"]
[WhiteElo "1121"]
[BlackElo "1662"]
[TimeControl "300"]
[EndTime "9:49:05 PDT"]
[Termination "jagbama won by resignation"]

1. e4 {[%clk 0:04:58.5]} 1... e6 {[%clk 0:04:58.1]} 2. Nf3 {[%clk 0:04:57.9]}
2... d5 {[%clk 0:04:57]} 3. d4 {[%clk 0:04:57.5]} 3... dxe4 {[%clk 0:04:55.8]}
4. Ne5 {[%clk 0:04:57]} 4... Nd7 {[%clk 0:04:53.1]} 5. Bf4 {[%clk 0:04:55.3]}
5... Nxe5 {[%clk 0:04:50.4]} 6. Bxe5 {[%clk 0:04:54.3]} 6... Nf6 {[%clk
0:04:49.3]} 7. Nc3 {[%clk 0:04:46.1]} 7... Bd6 {[%clk 0:04:39.1]} 8. Nxe4 {[%clk
0:04:41.9]} 8... Nxe4 {[%clk 0:04:35.4]} 9. Bxg7 {[%clk 0:04:40.9]} 9... Rg8
{[%clk 0:04:23.8]} 10. Qg4 {[%clk 0:04:31.6]} 10... Qg5 {[%clk 0:03:58.1]} 11.
Qxe4 {[%clk 0:04:15.4]} 11... Rxg7 {[%clk 0:03:49.9]} 12. h4 {[%clk 0:04:10.6]}
12... Qd5 {[%clk 0:03:42]} 13. Qd3 {[%clk 0:04:00.3]} 13... Bd7 {[%clk
0:03:30.4]} 14. b3 {[%clk 0:03:57]} 14... a6 {[%clk 0:03:20.9]} 15. Rh3 {[%clk
0:03:53.6]} 15... Bb5 {[%clk 0:03:15.7]} 16. c4 {[%clk 0:03:51.8]} 16... Bb4+
{[%clk 0:03:07.8]} 17. Kd1 {[%clk 0:03:46.1]} 17... Bxc4 {[%clk 0:02:47.5]} 18.
bxc4 {[%clk 0:03:44.8]} 18... Qh5+ {[%clk 0:02:40.2]} 19. Be2 {[%clk 0:03:42.1]}
19... Qg6 {[%clk 0:02:38.8]} 20. Qxg6 {[%clk 0:03:10]} 20... Rxg6 {[%clk
0:02:35.9]} 21. Bf3 {[%clk 0:03:02.1]} 21... O-O-O {[%clk 0:02:31.4]} 22. Rb1
{[%clk 0:02:59.7]} 22... Rxd4+ {[%clk 0:02:28.8]} 23. Ke2 {[%clk 0:02:44.9]}
23... Rxc4 {[%clk 0:02:04.5]} 24. a3 {[%clk 0:02:23.4]} 24... Bxa3 {[%clk
0:01:55.7]} 25. Bxb7+ {[%clk 0:02:21.5]} 25... Kd8 {[%clk 0:01:54]} 26. Rd3+
{[%clk 0:02:18.8]} 26... Ke7 {[%clk 0:01:47.9]} 27. Rxa3 {[%clk 0:02:13.4]}
27... Rxg2 {[%clk 0:01:38.3]} 28. Bxg2 {[%clk 0:02:11.9]} 28... Rxh4 {[%clk
0:01:34.6]} 29. Rxa6 {[%clk 0:01:59.7]} 29... Rh2 {[%clk 0:01:30.4]} 30. Bf3
{[%clk 0:01:54.2]} 30... h5 {[%clk 0:01:28.2]} 31. Rc1 {[%clk 0:01:49.7]} 31...
Kd8 {[%clk 0:01:25.1]} 32. Ra8+ {[%clk 0:01:43]} 32... Kd7 {[%clk 0:01:23]} 33.
Rd1+ {[%clk 0:01:40.4]} 33... Ke7 {[%clk 0:01:19.2]} 34. Ra7 {[%clk 0:01:37.7]}
34... Rh4 {[%clk 0:01:17.1]} 35. Rxc7+ {[%clk 0:01:36.2]} 35... Kf6 {[%clk
0:01:16.4]} 36. Rcd7 {[%clk 0:01:26.1]} 36... Ra4 {[%clk 0:01:11.1]} 37. R7d4
{[%clk 0:01:20.1]} 37... Ra2+ {[%clk 0:01:08.8]} 38. R1d2 {[%clk 0:01:18.9]}
38... Ra3 {[%clk 0:01:07.5]} 39. Bxh5 {[%clk 0:01:17]} 39... e5 {[%clk
0:01:05.1]} 40. R4d3 {[%clk 0:01:14.8]} 40... Ra4 {[%clk 0:01:03.7]} 41. Rf3+
{[%clk 0:01:09.6]} 41... Kg5 {[%clk 0:01:01.3]} 42. Bxf7 {[%clk 0:01:08.3]}
42... e4 {[%clk 0:00:59.6]} 43. Rg3+ {[%clk 0:01:03.5]} 43... Kf6 {[%clk
0:00:58.5]} 44. Be8 {[%clk 0:00:58.7]} 44... Ke7 {[%clk 0:00:56.2]} 45. Bxa4
{[%clk 0:00:57]} 1-0

[Event "Live Chess"]
[Site "Chess.com"]
[Date "2023.05.20"]
[Round "-"]
[White "jameskwong"]
[Black "Horseymobile"]
[Result "1/2-1/2"]
[WhiteElo "2170"]
[BlackElo "1252"]
[TimeControl "300"]
[EndTime "9:49:06 PDT"]
[Termination "Game drawn by repetition"]

1. e4 {[%clk 0:04:58]} 1... c6 {[%clk 0:04:57.9]} 2. d4 {[%clk 0:04:56.6]} 2...
d5 {[%clk 0:04:57.3]} 3. Nc3 {[%clk 0:04:55]} 3... dxe4 {[%clk 0:04:56.2]} 4.
Nxe4 {[%clk 0:04:54.5]} 4... Bf5 {[%clk 0:04:55.7]} 5. Ng3 {[%clk 0:04:53.5]}
5... Bg6 {[%clk 0:04:54.4]} 6. Nf3 {[%clk 0:04:53.1]} 6... Nf6 {[%clk
0:04:53.1]} 7. h4 {[%clk 0:04:51.8]} 7... h6 {[%clk 0:04:51]} 8. h5 {[%clk
0:04:49.3]} 8... Bh7 {[%clk 0:04:49.3]} 9. Bd3 {[%clk 0:04:48.7]} 9... Bxd3
{[%clk 0:04:47.3]} 10. Qxd3 {[%clk 0:04:48.6]} 10... Nbd7 {[%clk 0:04:46.5]} 11.
Bf4 {[%clk 0:04:42.5]} 11... e6 {[%clk 0:04:42.5]} 12. O-O {[%clk 0:04:38.2]}
12... Qb6 {[%clk 0:04:31.8]} 13. c4 {[%clk 0:04:32.2]} 13... O-O-O {[%clk
0:04:27]} 14. a3 {[%clk 0:04:13.9]} 14... Qa5 {[%clk 0:04:16]} 15. b4 {[%clk
0:04:11.2]} 15... Qa4 {[%clk 0:04:06.7]} 16. b5 {[%clk 0:03:58.4]} 16... Nb6
{[%clk 0:04:02.2]} 17. Ne5 {[%clk 0:03:52.2]} 17... Bc5 {[%clk 0:03:47.3]} 18.
Nxf7 {[%clk 0:03:35.3]} 18... Rxd4 {[%clk 0:03:45.1]} 19. Qe3 {[%clk 0:03:33.9]}
19... Ng4 {[%clk 0:03:38.2]} 20. Qxe6+ {[%clk 0:03:30.5]} 20... Nd7 {[%clk
0:03:34.9]} 21. Nxh8 {[%clk 0:03:21.8]} 21... Rxf4 {[%clk 0:03:30.8]} 22. Rad1
{[%clk 0:03:06.1]} 22... Bxf2+ {[%clk 0:03:23.3]} 23. Kh1 {[%clk 0:02:59.9]}
23... Bd4 {[%clk 0:03:16.1]} 24. Rxf4 {[%clk 0:02:34]} 24... Qxd1+ {[%clk
0:03:11.4]} 25. Rf1 {[%clk 0:02:33.3]} 25... Nf2+ {[%clk 0:03:01.2]} 26. Kh2
{[%clk 0:02:30.9]} 26... Ng4+ {[%clk 0:02:54.8]} 27. Kh3 {[%clk 0:02:28.9]}
27... Nf2+ {[%clk 0:02:29.2]} 28. Rxf2 {[%clk 0:01:47]} 28... Bxf2 {[%clk
0:02:25.2]} 29. bxc6 {[%clk 0:01:42.9]} 29... bxc6 {[%clk 0:02:19.9]} 30. Qxc6+
{[%clk 0:01:40]} 30... Kd8 {[%clk 0:02:18.6]} 31. Qa8+ {[%clk 0:00:52.4]} 31...
Ke7 {[%clk 0:02:13.5]} 32. Ng6+ {[%clk 0:00:50.3]} 32... Kf7 {[%clk 0:01:53.2]}
33. Nf4 {[%clk 0:00:32.1]} 33... Bxg3 {[%clk 0:01:42.3]} 34. Kxg3 {[%clk
0:00:30.1]} 34... Qe1+ {[%clk 0:01:38.5]} 35. Kh3 {[%clk 0:00:26.8]} 35... Qe3+
{[%clk 0:01:37]} 36. Qf3 {[%clk 0:00:25]} 36... Qxf3+ {[%clk 0:01:26.6]} 37.
gxf3 {[%clk 0:00:24.9]} 37... Ne5 {[%clk 0:01:21.1]} 38. c5 {[%clk 0:00:23.6]}
38... Nxf3 {[%clk 0:01:19.9]} 39. Kg4 {[%clk 0:00:22.3]} 39... Ne5+ {[%clk
0:01:19]} 40. Kf5 {[%clk 0:00:22]} 40... Nc6 {[%clk 0:01:13.2]} 41. Ke4 {[%clk
0:00:21.2]} 41... Ke7 {[%clk 0:01:07.9]} 42. Kd5 {[%clk 0:00:19.4]} 42... Kd7
{[%clk 0:01:07.2]} 43. Ne6 {[%clk 0:00:18.6]} 43... Ne7+ {[%clk 0:01:02.1]} 44.
Ke5 {[%clk 0:00:18]} 44... Nc6+ {[%clk 0:00:59.6]} 45. Kd5 {[%clk 0:00:17.7]}
45... Ne7+ {[%clk 0:00:58.9]} 46. Ke5 {[%clk 0:00:17.3]} 46... Nc6+ {[%clk
0:00:58.3]} 47. Kd5 {[%clk 0:00:16.9]} 1/2-1/2

[Event "Live Chess"]
[Site "Chess.com"]
[Date "2023.05.20"]
[Round "-"]
[White "Crowded_House"]
[Black "Conradical12"]
[Result "1-0"]
[WhiteElo "1696"]
[BlackElo "1510"]
[TimeControl "300"]
[EndTime "9:49:08 PDT"]
[Termination "Crowded_House won by resignation"]

1. d4 {[%clk 0:04:55.8]} 1... d5 {[%clk 0:04:58.5]} 2. Bg5 {[%clk 0:04:55.1]}
2... f6 {[%clk 0:04:56.9]} 3. Bh4 {[%clk 0:04:53.4]} 3... c5 {[%clk 0:04:56.3]}
4. c3 {[%clk 0:04:48.4]} 4... e5 {[%clk 0:04:55.5]} 5. dxe5 {[%clk 0:04:45.4]}
5... Nc6 {[%clk 0:04:55]} 6. exf6 {[%clk 0:04:42]} 6... Nxf6 {[%clk 0:04:53.8]}
7. e3 {[%clk 0:04:37.3]} 7... Bf5 {[%clk 0:04:53.1]} 8. Bd3 {[%clk 0:04:34.5]}
8... Bg6 {[%clk 0:04:51.2]} 9. Nf3 {[%clk 0:04:29.3]} 9... Bd6 {[%clk
0:04:50.2]} 10. O-O {[%clk 0:04:26.1]} 10... O-O {[%clk 0:04:49.2]} 11. Bxg6
{[%clk 0:04:21.1]} 11... hxg6 {[%clk 0:04:47.9]} 12. Qc2 {[%clk 0:04:18.6]}
12... Qe8 {[%clk 0:04:45.4]} 13. Nbd2 {[%clk 0:04:08.3]} 13... Ne4 {[%clk
0:04:40.9]} 14. Nxe4 {[%clk 0:03:55.2]} 14... dxe4 {[%clk 0:04:39.4]} 15. Nd2
{[%clk 0:03:53.3]} 15... g5 {[%clk 0:04:35.3]} 16. Bg3 {[%clk 0:03:41.2]} 16...
Ne5 {[%clk 0:04:33]} 17. Qxe4 {[%clk 0:03:25.1]} 17... g4 {[%clk 0:04:16.8]} 18.
Qd5+ {[%clk 0:03:20.9]} 18... Kh8 {[%clk 0:04:14.8]} 19. Qxd6 {[%clk 0:03:18.9]}
19... Nf3+ {[%clk 0:04:11.8]} 20. Nxf3 {[%clk 0:03:12.1]} 20... gxf3 {[%clk
0:04:10.2]} 21. gxf3 {[%clk 0:03:09.6]} 21... Rxf3 {[%clk 0:04:08.8]} 1-0

[Event "Live Chess"]
[Site "Chess.com"]
[Date "2023.05.20"]
[Round "-"]
[White "CheckString"]
[Black "RedRook90"]
[Result "0-1"]
[WhiteElo "1347"]
[BlackElo "1963"]
[TimeControl "300"]
[EndTime "9:49:12 PDT"]
[Termination "RedRook90 won by checkmate"]

1. e4 {[%clk 0:04:56.5]} 1... c6 {[%clk 0:04:59.4]} 2. d4 {[%clk 0:04:54.4]}
2... d5 {[%clk 0:04:59]} 3. f3 {[%clk 0:04:53.8]} 3... e6 {[%clk 0:04:57]} 4. e5
{[%clk 0:04:51]} 4... c5 {[%clk 0:04:55.2]} 5. c3 {[%clk 0:04:45.6]} 5... Nc6
{[%clk 0:04:54.1]} 6. Be3 {[%clk 0:04:37.8]} 6... Qb6 {[%clk 0:04:48.2]} 7. Qb3
{[%clk 0:04:32.9]} 7... cxd4 {[%clk 0:04:33.8]} 8. Qxb6 {[%clk 0:04:29.2]} 8...
axb6 {[%clk 0:04:32.1]} 9. cxd4 {[%clk 0:04:29.1]} 9... Nb4 {[%clk 0:04:24.2]}
10. Kd2 {[%clk 0:04:12.1]} 10... Rxa2 {[%clk 0:04:19.9]} 11. Rxa2 {[%clk
0:04:09.9]} 11... Nxa2 {[%clk 0:04:19.8]} 12. Nc3 {[%clk 0:04:09.8]} 12... Nxc3
{[%clk 0:04:11.6]} 13. bxc3 {[%clk 0:04:09.7]} 13... Ne7 {[%clk 0:04:08.5]} 14.
Bd3 {[%clk 0:04:05.7]} 14... Bd7 {[%clk 0:04:07.5]} 15. Ne2 {[%clk 0:04:03.2]}
15... Nc6 {[%clk 0:04:07]} 16. Rb1 {[%clk 0:03:59.6]} 16... Be7 {[%clk
0:03:54.2]} 17. Rxb6 {[%clk 0:03:57.7]} 17... Bc8 {[%clk 0:03:53.2]} 18. Bb5
{[%clk 0:03:52.4]} 18... Kd7 {[%clk 0:03:52.7]} 19. Ba4 {[%clk 0:03:43.4]} 19...
Bd8 {[%clk 0:03:48.7]} 20. Rb1 {[%clk 0:03:41]} 20... Kc7 {[%clk 0:03:30.5]} 21.
Nc1 {[%clk 0:03:39.6]} 21... Be7 {[%clk 0:03:28.6]} 22. Nb3 {[%clk 0:03:35.1]}
22... Bd7 {[%clk 0:03:27.2]} 23. Kd3 {[%clk 0:03:25.2]} 23... Ra8 {[%clk
0:03:25.1]} 24. Bxc6 {[%clk 0:03:22.9]} 24... Bxc6 {[%clk 0:03:19.7]} 25. f4
{[%clk 0:03:20.8]} 25... Ra3 {[%clk 0:03:18.2]} 26. Nd2 {[%clk 0:03:14.9]} 26...
Ra2 {[%clk 0:02:55.1]} 27. g4 {[%clk 0:03:04.2]} 27... b5 {[%clk 0:02:54.3]} 28.
f5 {[%clk 0:03:03.3]} 28... Ra3 {[%clk 0:02:52.2]} 29. Kc2 {[%clk 0:02:49.8]}
29... b4 {[%clk 0:02:44.1]} 30. Nf3 {[%clk 0:02:45.4]} 30... Rxc3+ {[%clk
0:02:35.9]} 31. Kd2 {[%clk 0:02:43.8]} 31... Bb5 {[%clk 0:02:35.6]} 32. Rc1
{[%clk 0:02:36.7]} 32... Rxc1 {[%clk 0:02:27.9]} 33. Kxc1 {[%clk 0:02:36.6]}
33... b3 {[%clk 0:02:24.9]} 34. Kb2 {[%clk 0:02:34.7]} 34... Bc4 {[%clk
0:02:23.8]} 35. Nd2 {[%clk 0:02:32.6]} 35... Kc6 {[%clk 0:02:22.5]} 36. g5
{[%clk 0:02:29.1]} 36... Bb4 {[%clk 0:02:12.2]} 37. f6 {[%clk 0:02:24.9]} 37...
g6 {[%clk 0:01:52]} 38. Nxb3 {[%clk 0:02:23.3]} 38... Bxb3 {[%clk 0:01:50]} 39.
Kxb3 {[%clk 0:02:23.2]} 39... Be1 {[%clk 0:01:49.3]} 40. Bf4 {[%clk 0:02:14.1]}
40... Kb5 {[%clk 0:01:46.3]} 41. h3 {[%clk 0:02:11.4]} 41... Bf2 {[%clk
0:01:43.7]} 42. Bc1 {[%clk 0:02:08.4]} 42... Bxd4 {[%clk 0:01:42.4]} 43. Bf4
{[%clk 0:02:04.5]} 43... Bf2 {[%clk 0:01:40.3]} 44. Kc2 {[%clk 0:02:03.9]} 44...
Kc5 {[%clk 0:01:39.2]} 45. Kd3 {[%clk 0:02:02.9]} 45... d4 {[%clk 0:01:36.2]}
46. Bd2 {[%clk 0:02:00.3]} 46... Kd5 {[%clk 0:01:34.7]} 47. Bf4 {[%clk
0:01:58.6]} 47... Bg1 {[%clk 0:01:30.6]} 48. Bd2 {[%clk 0:01:55.8]} 48... Kxe5
{[%clk 0:01:29.1]} 49. Bb4 {[%clk 0:01:54.3]} 49... Kf5 {[%clk 0:01:27.5]} 50.
Bc5 {[%clk 0:01:52.4]} 50... Kxg5 {[%clk 0:01:26.5]} 51. Bxd4 {[%clk 0:01:52.3]}
51... Bxd4 {[%clk 0:01:25.4]} 52. Kxd4 {[%clk 0:01:52.2]} 52... Kxf6 {[%clk
0:01:25.1]} 53. Ke4 {[%clk 0:01:51.2]} 53... e5 {[%clk 0:01:24.5]} 54. Ke3
{[%clk 0:01:49.7]} 54... Kf5 {[%clk 0:01:24.2]} 55. Ke2 {[%clk 0:01:47.9]} 55...
e4 {[%clk 0:01:23.8]} 56. Ke3 {[%clk 0:01:47.5]} 56... Ke5 {[%clk 0:01:23.4]}
57. h4 {[%clk 0:01:46.6]} 57... f5 {[%clk 0:01:23.3]} 58. h5 {[%clk 0:01:45.8]}
58... gxh5 {[%clk 0:01:22.9]} 59. Ke2 {[%clk 0:01:45]} 59... f4 {[%clk
0:01:22.6]} 60. Kf2 {[%clk 0:01:43.9]} 60... h4 {[%clk 0:01:22.2]} 61. Ke2
{[%clk 0:01:43.3]} 61... h3 {[%clk 0:01:21.8]} 62. Kf2 {[%clk 0:01:43]} 62... f3
{[%clk 0:01:20.1]} 63. Kg1 {[%clk 0:01:41.6]} 63... Kf4 {[%clk 0:01:18.5]} 64.
Kf2 {[%clk 0:01:40.8]} 64... e3+ {[%clk 0:01:17.8]} 65. Kg1 {[%clk 0:01:40.1]}
65... e2 {[%clk 0:01:15.2]} 66. Kh2 {[%clk 0:01:38.6]} 66... e1=Q {[%clk
0:01:13.2]} 67. Kxh3 {[%clk 0:01:35.4]} 67... Qh1# {[%clk 0:01:12.8]} 0-1

[Event "Live Chess"]
[Site "Chess.com"]
[Date "2023.05.20"]
[Round "-"]
[White "JackCheetham1"]
[Black "OSmith06"]
[Result "1-0"]
[WhiteElo "1713"]
[BlackElo "1727"]
[TimeControl "300"]
[EndTime "9:49:14 PDT"]
[Termination "JackCheetham1 won by resignation"]

1. e4 {[%clk 0:04:56.8]} 1... a6 {[%clk 0:04:58.3]} 2. d4 {[%clk 0:04:54.7]}
2... b6 {[%clk 0:04:57.7]} 3. c4 {[%clk 0:04:51.8]} 3... b5 {[%clk 0:04:57.6]}
4. Nf3 {[%clk 0:04:47.6]} 4... b4 {[%clk 0:04:57.5]} 5. b3 {[%clk 0:04:44.5]}
5... a5 {[%clk 0:04:57.4]} 6. Be2 {[%clk 0:04:36.5]} 6... a4 {[%clk 0:04:57.3]}
7. Bf4 {[%clk 0:04:24.6]} 7... a3 {[%clk 0:04:57.2]} 8. O-O {[%clk 0:04:20.8]}
8... Ra7 {[%clk 0:04:54.6]} 9. Nbd2 {[%clk 0:04:17.4]} 9... Ra6 {[%clk
0:04:54.5]} 10. Re1 {[%clk 0:04:16.5]} 10... Ra5 {[%clk 0:04:54.4]} 11. c5
{[%clk 0:04:15.5]} 11... Ra4 {[%clk 0:04:54.3]} 12. d5 {[%clk 0:04:14.7]} 12...
Ra5 {[%clk 0:04:54.2]} 13. e5 {[%clk 0:04:14]} 13... Ra4 {[%clk 0:04:54.1]} 14.
c6 {[%clk 0:04:13.4]} 1-0

[Event "Live Chess"]
[Site "Chess.com"]
[Date "2023.05.20"]
[Round "-"]
[White "Nazarenko_vital"]
[Black "IanCalvert2"]
[Result "1-0"]
[WhiteElo "1600"]
[BlackElo "1609"]
[TimeControl "300"]
[EndTime "9:49:22 PDT"]
[Termination "Nazarenko_vital won by resignation"]

1. e4 {[%clk 0:04:56.6]} 1... d5 {[%clk 0:04:57.3]} 2. exd5 {[%clk 0:04:55]}
2... Qxd5 {[%clk 0:04:55.7]} 3. Nc3 {[%clk 0:04:54.9]} 3... Qd6 {[%clk
0:04:54.6]} 4. d4 {[%clk 0:04:53.4]} 4... Nf6 {[%clk 0:04:53.5]} 5. Nf3 {[%clk
0:04:44.4]} 5... c6 {[%clk 0:04:51.1]} 6. h3 {[%clk 0:04:42.2]} 6... g6 {[%clk
0:04:44.3]} 7. Be2 {[%clk 0:04:30.1]} 7... Bg7 {[%clk 0:04:41.3]} 8. Be3 {[%clk
0:04:25.3]} 8... O-O {[%clk 0:04:36.9]} 9. Qd2 {[%clk 0:04:24.5]} 9... Nbd7
{[%clk 0:04:34]} 10. Bh6 {[%clk 0:04:22.7]} 10... Re8 {[%clk 0:03:46.9]} 11.
Bxg7 {[%clk 0:04:18.6]} 11... Kxg7 {[%clk 0:03:44.4]} 12. O-O-O {[%clk
0:04:17.4]} 12... e5 {[%clk 0:03:38]} 13. h4 {[%clk 0:03:40]} 13... exd4 {[%clk
0:03:25.8]} 14. Nxd4 {[%clk 0:03:37.9]} 14... Qe5 {[%clk 0:03:08.8]} 15. h5
{[%clk 0:03:18.7]} 15... Nxh5 {[%clk 0:02:53.4]} 16. Bxh5 {[%clk 0:03:16.9]}
16... gxh5 {[%clk 0:02:51.4]} 17. Rde1 {[%clk 0:03:06.6]} 1-0

[Event "Live Chess"]
[Site "Chess.com"]
[Date "2023.05.20"]
[Round "-"]
[White "nick1993"]
[Black "luckywookie"]
[Result "1-0"]
[WhiteElo "2119"]
[BlackElo "719"]
[TimeControl "300"]
[EndTime "9:49:27 PDT"]
[Termination "nick1993 won by resignation"]

1. e4 {[%clk 0:04:57.2]} 1... c6 {[%clk 0:04:57.1]} 2. d4 {[%clk 0:04:56.2]}
2... d5 {[%clk 0:04:55.7]} 3. f3 {[%clk 0:04:55.5]} 3... e6 {[%clk 0:04:49.6]}
4. c4 {[%clk 0:04:49.6]} 4... c5 {[%clk 0:04:47.1]} 5. cxd5 {[%clk 0:04:47.3]}
5... exd5 {[%clk 0:04:40.9]} 6. dxc5 {[%clk 0:04:45.4]} 6... Nc6 {[%clk
0:04:33.1]} 7. exd5 {[%clk 0:04:42.8]} 7... Qe7+ {[%clk 0:04:26.1]} 8. Qe2
{[%clk 0:04:38.8]} 8... Nd4 {[%clk 0:04:20.2]} 9. Qxe7+ {[%clk 0:04:32.6]} 9...
Bxe7 {[%clk 0:04:18.5]} 10. Bd3 {[%clk 0:04:29.6]} 10... Bxc5 {[%clk 0:04:15.5]}
11. Nc3 {[%clk 0:04:15.2]} 11... g6 {[%clk 0:04:09.2]} 12. Nge2 {[%clk
0:03:50.8]} 12... Nf5 {[%clk 0:03:49.7]} 13. Ne4 {[%clk 0:03:40.5]} 13... Bd4
{[%clk 0:03:40.6]} 14. Nxd4 {[%clk 0:03:36.4]} 14... Nxd4 {[%clk 0:03:38.6]} 15.
O-O {[%clk 0:03:35.2]} 15... Bf5 {[%clk 0:03:29]} 16. Nd6+ {[%clk 0:03:33.3]}
16... Kd7 {[%clk 0:03:24]} 17. Bxf5+ {[%clk 0:03:29.9]} 17... gxf5 {[%clk
0:03:22.1]} 18. Nxf7 {[%clk 0:03:29]} 18... Nf6 {[%clk 0:03:18]} 19. Nxh8 {[%clk
0:03:26.7]} 19... Ne2+ {[%clk 0:03:16.6]} 20. Kh1 {[%clk 0:03:25.3]} 20... Rxh8
{[%clk 0:02:42.4]} 21. Bd2 {[%clk 0:03:10.6]} 21... Nxd5 {[%clk 0:02:34.4]} 22.
Rad1 {[%clk 0:03:06.9]} 22... f4 {[%clk 0:02:08.4]} 23. Rfe1 {[%clk 0:02:58.4]}
23... Re8 {[%clk 0:01:56.2]} 24. Bc1 {[%clk 0:02:40.2]} 24... Kd6 {[%clk
0:01:53.7]} 25. Rd2 {[%clk 0:02:34.9]} 25... Kc6 {[%clk 0:01:26.4]} 26. Rdxe2
{[%clk 0:02:32.2]} 26... Rxe2 {[%clk 0:01:24.2]} 27. Rxe2 {[%clk 0:02:32.1]}
27... Ne3 {[%clk 0:01:22.8]} 28. Bxe3 {[%clk 0:02:30.8]} 28... fxe3 {[%clk
0:01:20.8]} 29. Rxe3 {[%clk 0:02:30.7]} 29... Kd5 {[%clk 0:01:19.7]} 30. f4
{[%clk 0:02:28.2]} 30... Kd4 {[%clk 0:01:15.7]} 31. Re8 {[%clk 0:02:26.2]} 31...
Kd3 {[%clk 0:01:10.1]} 32. f5 {[%clk 0:02:26.1]} 32... Kc2 {[%clk 0:01:08.9]}
33. f6 {[%clk 0:02:26]} 33... Kxb2 {[%clk 0:01:07.9]} 34. f7 {[%clk 0:02:25.9]}
1-0

[Event "Live Chess"]
[Site "Chess.com"]
[Date "2023.05.20"]
[Round "-"]
[White "lamteama1"]
[Black "Singapourfeuj"]
[Result "1-0"]
[WhiteElo "1130"]
[BlackElo "2274"]
[TimeControl "300"]
[EndTime "9:49:29 PDT"]
[Termination "lamteama1 won by checkmate"]

1. e4 {[%clk 0:04:52.2]} 1... e6 {[%clk 0:04:59]} 2. d3 {[%clk 0:04:40.4]} 2...
d5 {[%clk 0:04:58.1]} 3. Nd2 {[%clk 0:04:31.3]} 3... Nc6 {[%clk 0:04:56.6]} 4.
Ngf3 {[%clk 0:04:27.5]} 4... dxe4 {[%clk 0:04:55.7]} 5. dxe4 {[%clk 0:04:22.8]}
5... e5 {[%clk 0:04:54.4]} 6. Bb5 {[%clk 0:04:16.8]} 6... Bd6 {[%clk 0:04:50.3]}
7. Nc4 {[%clk 0:04:10.1]} 7... f6 {[%clk 0:04:39.8]} 8. O-O {[%clk 0:03:59]}
8... Bg4 {[%clk 0:04:37.1]} 9. Na5 {[%clk 0:03:52.2]} 9... Ne7 {[%clk
0:04:34.3]} 10. Nxb7 {[%clk 0:03:44.4]} 10... Qd7 {[%clk 0:04:33.5]} 11. h3
{[%clk 0:03:38.2]} 11... Be6 {[%clk 0:04:28.5]} 12. Qd3 {[%clk 0:03:33]} 12...
O-O {[%clk 0:04:26.8]} 13. Rd1 {[%clk 0:03:27.4]} 13... a6 {[%clk 0:04:21]} 14.
Bc4 {[%clk 0:03:22.9]} 14... Nb4 {[%clk 0:04:09.3]} 15. Qb3 {[%clk 0:03:16.2]}
15... Kf7 {[%clk 0:03:55.1]} 16. Rxd6 {[%clk 0:03:09.6]} 16... cxd6 {[%clk
0:03:52.1]} 17. Bxe6+ {[%clk 0:03:04.5]} 17... Qxe6 {[%clk 0:03:51.1]} 18. Nxd6+
{[%clk 0:02:57.9]} 18... Kg6 {[%clk 0:03:47.6]} 19. Nh4+ {[%clk 0:02:51.9]}
19... Kh5 {[%clk 0:03:45.9]} 20. Qf3+ {[%clk 0:02:46.6]} 20... Kxh4 {[%clk
0:03:43.6]} 21. g3+ {[%clk 0:02:42.2]} 21... Kxh3 {[%clk 0:03:42.5]} 22. Qh5#
{[%clk 0:02:32.2]} 1-0